[Event "*** Titled Tuesday Blitz"]
[Site "Chess.com"]
[Date "2020.05.19"]
[Round "10"]
[White "Shield12"]
[Black "ManuDavid2910"]
[Result "1-0"]
[WhiteElo "2827"]
[BlackElo "2704"]
[TimeControl "180+1"]
[EndTime "13:57:52 PDT"]
[Termination "Shield12 won by resignation"]

1. e4 {[%clk 0:03:00.9]} 1... c5 {[%clk 0:02:59.7]} 2. Nf3 {[%clk 0:03:01]} 2...
Nc6 {[%clk 0:02:59.5]} 3. d4 {[%clk 0:03:01.4]} 3... cxd4 {[%clk 0:02:59.6]} 4.
Nxd4 {[%clk 0:03:02.3]} 4... e5 {[%clk 0:02:59.8]} 5. Nb5 {[%clk 0:03:02.2]}
5... d6 {[%clk 0:03:00.2]} 6. N1c3 {[%clk 0:03:02.2]} 6... a6 {[%clk 0:03:00.2]}
7. Na3 {[%clk 0:03:02.5]} 7... Be6 {[%clk 0:03:01.1]} 8. Nc4 {[%clk 0:03:01.9]}
8... Nf6 {[%clk 0:03:02]} 9. Bg5 {[%clk 0:03:01.3]} 9... Nd4 {[%clk 0:03:02.3]}
10. Bxf6 {[%clk 0:02:58.7]} 10... gxf6 {[%clk 0:02:59.6]} 11. Ne3 {[%clk
0:02:57.7]} 11... f5 {[%clk 0:02:59.6]} 12. exf5 {[%clk 0:02:55.2]} 12... Nxf5
{[%clk 0:03:00.5]} 13. Nxf5 {[%clk 0:02:52.8]} 13... Bxf5 {[%clk 0:03:01.4]} 14.
Qf3 {[%clk 0:02:52.3]} 14... Be6 {[%clk 0:02:08.2]} 15. Qxb7 {[%clk 0:02:47.4]}
15... Rb8 {[%clk 0:02:07.7]} 16. Qxa6 {[%clk 0:02:45.9]} 16... Rxb2 {[%clk
0:02:04.4]} 17. Bb5+ {[%clk 0:02:44.5]} 17... Ke7 {[%clk 0:01:43.1]} 18. Qb7+
{[%clk 0:02:42.2]} 18... Kf6 {[%clk 0:01:42.5]} 19. Qf3+ {[%clk 0:02:23.2]}
19... Ke7 {[%clk 0:01:24.8]} 20. O-O {[%clk 0:02:19.7]} 20... d5 {[%clk
0:01:22.7]} 21. Ba4 {[%clk 0:01:54.1]} 21... Bg7 {[%clk 0:01:19.6]} 22. Bb3
{[%clk 0:01:52.6]} 22... e4 {[%clk 0:01:16.2]} 23. Qg3 {[%clk 0:01:44.6]} 23...
Rg8 {[%clk 0:01:15.7]} 24. Rad1 {[%clk 0:01:43]} 24... Bd4 {[%clk 0:00:50.1]}
25. Rxd4 {[%clk 0:00:44.5]} 25... Rxg3 {[%clk 0:00:49.2]} 26. hxg3 {[%clk
0:00:45.4]} 26... Qa5 {[%clk 0:00:31.2]} 27. Nxd5+ {[%clk 0:00:43.9]} 27... Kf8
{[%clk 0:00:28.9]} 28. Rfd1 {[%clk 0:00:41.2]} 28... Qc5 {[%clk 0:00:24.4]} 29.
Ne3 {[%clk 0:00:36.2]} 29... Bxb3 {[%clk 0:00:23.1]} 30. axb3 {[%clk 0:00:37.1]}
30... Qc3 {[%clk 0:00:16.9]} 31. Nf5 {[%clk 0:00:34.4]} 31... f6 {[%clk
0:00:15.8]} 32. Rd8+ {[%clk 0:00:28]} 32... Kf7 {[%clk 0:00:15.6]} 33. Ne3
{[%clk 0:00:24.4]} 33... h5 {[%clk 0:00:10.5]} 34. R8d4 {[%clk 0:00:18.8]} 34...
f5 {[%clk 0:00:09.7]} 35. Nxf5 {[%clk 0:00:18.2]} 35... Qxc2 {[%clk 0:00:09.2]}
36. Rf1 {[%clk 0:00:16.1]} 36... Rb1 {[%clk 0:00:09.2]} 37. Ne3 {[%clk
0:00:15.4]} 37... Rxf1+ {[%clk 0:00:08.9]} 38. Nxf1 {[%clk 0:00:16.3]} 38...
Qxb3 {[%clk 0:00:09.3]} 39. Rxe4 {[%clk 0:00:16.3]} 39... Qd1 {[%clk 0:00:09.4]}
40. Rf4+ {[%clk 0:00:16.5]} 40... Kg6 {[%clk 0:00:09.8]} 41. Re4 {[%clk
0:00:16.3]} 41... Qc1 {[%clk 0:00:09.4]} 42. f3 {[%clk 0:00:16.5]} 42... Qd1
{[%clk 0:00:09.1]} 43. Kf2 {[%clk 0:00:16.4]} 43... Qc2+ {[%clk 0:00:09.4]} 44.
Re2 {[%clk 0:00:16]} 44... Qc5+ {[%clk 0:00:10.3]} 45. Ne3 {[%clk 0:00:16.1]}
45... Kg5 {[%clk 0:00:10.7]} 46. Kg1 {[%clk 0:00:16.3]} 46... h4 {[%clk
0:00:10.7]} 47. gxh4+ {[%clk 0:00:16.3]} 47... Kxh4 {[%clk 0:00:11.6]} 48. Kf2
{[%clk 0:00:17.2]} 48... Kg5 {[%clk 0:00:11.6]} 49. Rc2 {[%clk 0:00:17.4]} 49...
Qd4 {[%clk 0:00:11.1]} 50. Ke2 {[%clk 0:00:17.2]} 50... Qa4 {[%clk 0:00:10.9]}
51. Rc4 {[%clk 0:00:16.9]} 51... Qa2+ {[%clk 0:00:10.7]} 52. Rc2 {[%clk
0:00:16.9]} 52... Qa4 {[%clk 0:00:10.7]} 53. g3 {[%clk 0:00:17]} 53... Qb5+
{[%clk 0:00:10.4]} 54. Kf2 {[%clk 0:00:16.9]} 54... Qd3 {[%clk 0:00:10.6]} 55.
f4+ {[%clk 0:00:16.5]} 55... Kf6 {[%clk 0:00:10.9]} 56. Kf3 {[%clk 0:00:16.2]}
56... Ke7 {[%clk 0:00:10.7]} 57. g4 {[%clk 0:00:16.2]} 57... Kd6 {[%clk
0:00:10.6]} 58. Rd2 {[%clk 0:00:15.2]} 1-0

[Event "*** Titled Tuesday Blitz"]
[Site "Chess.com"]
[Date "2020.05.19"]
[Round "10"]
[White "MarcoRiehle"]
[Black "Titus369"]
[Result "0-1"]
[WhiteElo "2649"]
[BlackElo "2538"]
[TimeControl "180+1"]
[EndTime "13:57:53 PDT"]
[Termination "Titus369 won by checkmate"]

1. e4 {[%clk 0:03:00.9]} 1... c5 {[%clk 0:02:57.3]} 2. a3 {[%clk 0:03:00.7]}
2... e6 {[%clk 0:02:46.8]} 3. b4 {[%clk 0:03:00.1]} 3... cxb4 {[%clk 0:02:46.7]}
4. axb4 {[%clk 0:03:01]} 4... Bxb4 {[%clk 0:02:45.3]} 5. Bb2 {[%clk 0:03:00.5]}
5... Nf6 {[%clk 0:02:44.3]} 6. e5 {[%clk 0:02:59.8]} 6... Nd5 {[%clk 0:02:44.2]}
7. c4 {[%clk 0:02:59.1]} 7... Nc7 {[%clk 0:02:44]} 8. Qg4 {[%clk 0:02:58.2]}
8... g6 {[%clk 0:02:43]} 9. h4 {[%clk 0:02:57.5]} 9... h5 {[%clk 0:02:42.1]} 10.
Qg3 {[%clk 0:02:57.1]} 10... Nc6 {[%clk 0:02:42.5]} 11. Nf3 {[%clk 0:02:56.4]}
11... Be7 {[%clk 0:02:38.5]} 12. Bd3 {[%clk 0:02:55]} 12... Nb4 {[%clk
0:02:32.3]} 13. Be4 {[%clk 0:02:46.8]} 13... Nca6 {[%clk 0:02:30.7]} 14. O-O
{[%clk 0:02:22.2]} 14... Nc5 {[%clk 0:02:25.9]} 15. Nc3 {[%clk 0:02:22.3]} 15...
Nxe4 {[%clk 0:02:21.4]} 16. Nxe4 {[%clk 0:02:23.2]} 16... O-O {[%clk 0:02:21.6]}
17. Nf6+ {[%clk 0:02:20]} 17... Bxf6 {[%clk 0:02:15.8]} 18. exf6 {[%clk
0:02:20.9]} 18... d6 {[%clk 0:02:11.2]} 19. Qf4 {[%clk 0:02:10.3]} 19... e5
{[%clk 0:02:05.7]} 20. Qh6 {[%clk 0:02:09.7]} 20... Qxf6 {[%clk 0:02:04.8]} 21.
d4 {[%clk 0:01:58.4]} 21... e4 {[%clk 0:01:52.3]} 22. Ng5 {[%clk 0:01:58.2]}
22... Qg7 {[%clk 0:01:52.7]} 23. Qxg7+ {[%clk 0:01:58.2]} 23... Kxg7 {[%clk
0:01:53.6]} 24. d5+ {[%clk 0:01:58.8]} 24... f6 {[%clk 0:01:52.4]} 25. Nxe4
{[%clk 0:01:58.7]} 25... Bf5 {[%clk 0:01:48.8]} 26. Nxd6 {[%clk 0:01:58.6]}
26... Bd3 {[%clk 0:01:48.8]} 27. Rfe1 {[%clk 0:01:56.1]} 27... Rad8 {[%clk
0:01:36.7]} 28. Re7+ {[%clk 0:01:54.7]} 28... Kg8 {[%clk 0:01:35.9]} 29. Nxb7
{[%clk 0:01:54.2]} 29... Rde8 {[%clk 0:01:29.1]} 30. Bxf6 {[%clk 0:01:45.8]}
30... Rxe7 {[%clk 0:01:07.1]} 31. Bxe7 {[%clk 0:01:45.4]} 31... Nc2 {[%clk
0:01:06.2]} 32. Rd1 {[%clk 0:01:38.2]} 32... Re8 {[%clk 0:00:52.7]} 33. d6
{[%clk 0:01:37.7]} 33... Bf5 {[%clk 0:00:45.8]} 34. d7 {[%clk 0:01:35.3]} 34...
Bxd7 {[%clk 0:00:45.7]} 35. Rxd7 {[%clk 0:01:36.2]} 35... Kf7 {[%clk 0:00:44.7]}
36. Bg5+ {[%clk 0:01:29.3]} 36... Ke6 {[%clk 0:00:43.4]} 37. Nc5+ {[%clk
0:01:28]} 37... Kf5 {[%clk 0:00:43.8]} 38. Rf7+ {[%clk 0:01:24.6]} 38... Ke5
{[%clk 0:00:44.1]} 39. Re7+ {[%clk 0:01:23.6]} 39... Rxe7 {[%clk 0:00:43]} 40.
Bxe7 {[%clk 0:01:24.5]} 40... Kd4 {[%clk 0:00:43.4]} 41. Ne6+ {[%clk 0:01:16.1]}
41... Kxc4 {[%clk 0:00:43.5]} 42. Nf4 {[%clk 0:01:16.7]} 42... a5 {[%clk
0:00:44.2]} 43. Nxg6 {[%clk 0:01:16.6]} 43... a4 {[%clk 0:00:44.8]} 44. f4
{[%clk 0:01:14.9]} 44... Nb4 {[%clk 0:00:41.1]} 45. Ne5+ {[%clk 0:01:14.5]}
45... Kb3 {[%clk 0:00:39.5]} 46. Nd7 {[%clk 0:01:09.1]} 46... a3 {[%clk
0:00:38.6]} 47. Nc5+ {[%clk 0:01:09.7]} 47... Kc4 {[%clk 0:00:36.3]} 48. Ne4
{[%clk 0:00:52.2]} 48... a2 {[%clk 0:00:33.5]} 49. Nd2+ {[%clk 0:00:50.1]} 49...
Kc3 {[%clk 0:00:27.1]} 50. Ne4+ {[%clk 0:00:45.4]} 50... Kd4 {[%clk 0:00:18.3]}
51. Nf2 {[%clk 0:00:35.5]} 51... a1=Q+ {[%clk 0:00:17.9]} 52. Kh2 {[%clk
0:00:35.9]} 52... Nd5 {[%clk 0:00:14.1]} 53. Bg5 {[%clk 0:00:27.7]} 53... Qf1
{[%clk 0:00:12.3]} 54. Kg3 {[%clk 0:00:16.1]} 54... Ne3 {[%clk 0:00:11.2]} 55.
Bf6+ {[%clk 0:00:16.6]} 55... Kd5 {[%clk 0:00:10.3]} 56. Kf3 {[%clk 0:00:16.7]}
56... Ng4 {[%clk 0:00:09]} 57. Kg3 {[%clk 0:00:10.9]} 57... Qxf2+ {[%clk
0:00:08.8]} 58. Kh3 {[%clk 0:00:11.3]} 58... Qe3+ {[%clk 0:00:06.1]} 59. g3
{[%clk 0:00:10.7]} 59... Qf2 {[%clk 0:00:06.3]} 60. Bd4 {[%clk 0:00:09]} 60...
Kxd4 {[%clk 0:00:06.1]} 61. f5 {[%clk 0:00:08.8]} 61... Qg1 {[%clk 0:00:03.7]}
62. f6 {[%clk 0:00:09.6]} 62... Nf2# {[%clk 0:00:02.5]} 0-1

[Event "*** Titled Tuesday Blitz"]
[Site "Chess.com"]
[Date "2020.05.19"]
[Round "10"]
[White "AleksanderHnydiuk"]
[Black "Isajevsky_Anton"]
[Result "0-1"]
[WhiteElo "2567"]
[BlackElo "2453"]
[TimeControl "180+1"]
[EndTime "13:57:55 PDT"]
[Termination "Isajevsky_Anton won by resignation"]

1. Nf3 {[%clk 0:03:00.9]} 1... c5 {[%clk 0:02:59.1]} 2. c4 {[%clk 0:03:00.5]}
2... g6 {[%clk 0:02:58.6]} 3. d4 {[%clk 0:02:59.5]} 3... cxd4 {[%clk 0:02:58.5]}
4. Nxd4 {[%clk 0:02:59.1]} 4... Bg7 {[%clk 0:02:58.7]} 5. e4 {[%clk 0:02:59.2]}
5... Nc6 {[%clk 0:02:58.5]} 6. Be3 {[%clk 0:02:59.2]} 6... Nf6 {[%clk
0:02:58.8]} 7. Nc3 {[%clk 0:02:58.8]} 7... O-O {[%clk 0:02:58.2]} 8. Be2 {[%clk
0:02:58.8]} 8... d6 {[%clk 0:02:57]} 9. O-O {[%clk 0:02:58.3]} 9... Nxd4 {[%clk
0:02:54.9]} 10. Bxd4 {[%clk 0:02:58.2]} 10... Bd7 {[%clk 0:02:55.1]} 11. Qd3
{[%clk 0:02:49.4]} 11... Bc6 {[%clk 0:02:53.4]} 12. b4 {[%clk 0:02:49.2]} 12...
b6 {[%clk 0:02:52.2]} 13. f4 {[%clk 0:02:33.6]} 13... Rc8 {[%clk 0:02:41.2]} 14.
Rac1 {[%clk 0:02:25.3]} 14... Bb7 {[%clk 0:02:32.7]} 15. Nd5 {[%clk 0:02:11.4]}
15... Nxd5 {[%clk 0:02:12]} 16. exd5 {[%clk 0:02:11.4]} 16... Bf6 {[%clk
0:01:29]} 17. Bxf6 {[%clk 0:02:05.2]} 17... exf6 {[%clk 0:01:28.9]} 18. Qd4
{[%clk 0:02:06.1]} 18... Kg7 {[%clk 0:01:27.3]} 19. Bf3 {[%clk 0:02:01.7]} 19...
Re8 {[%clk 0:01:26.1]} 20. Rfe1 {[%clk 0:01:44]} 20... Rxe1+ {[%clk 0:01:23.6]}
21. Rxe1 {[%clk 0:01:44.9]} 21... Qc7 {[%clk 0:01:23.1]} 22. Rc1 {[%clk
0:01:42]} 22... a5 {[%clk 0:01:22]} 23. a3 {[%clk 0:01:38.7]} 23... axb4 {[%clk
0:01:22.2]} 24. axb4 {[%clk 0:01:39.6]} 24... Ra8 {[%clk 0:01:20]} 25. g4 {[%clk
0:00:59]} 25... Ra3 {[%clk 0:01:11.7]} 26. Bg2 {[%clk 0:00:49.3]} 26... Bc8
{[%clk 0:01:03.2]} 27. g5 {[%clk 0:00:47.6]} 27... Qd8 {[%clk 0:00:57.8]} 28. c5
{[%clk 0:00:41.4]} 28... bxc5 {[%clk 0:00:57.2]} 29. bxc5 {[%clk 0:00:42.3]}
29... dxc5 {[%clk 0:00:57.1]} 30. Rxc5 {[%clk 0:00:42]} 30... Bd7 {[%clk
0:00:35.5]} 31. d6 {[%clk 0:00:40.1]} 31... Ra4 {[%clk 0:00:35.1]} 32. Qxf6+
{[%clk 0:00:21]} 32... Qxf6 {[%clk 0:00:34]} 33. gxf6+ {[%clk 0:00:21.9]} 33...
Kxf6 {[%clk 0:00:34.6]} 34. Bc6 {[%clk 0:00:16.4]} 34... Bxc6 {[%clk 0:00:31.4]}
35. Rxc6 {[%clk 0:00:17.3]} 35... Rxf4 {[%clk 0:00:31.3]} 36. d7+ {[%clk
0:00:08.1]} 36... Ke7 {[%clk 0:00:30.5]} 37. Rd6 {[%clk 0:00:07.2]} 37... Kd8
{[%clk 0:00:30]} 38. Kg2 {[%clk 0:00:06.9]} 38... h5 {[%clk 0:00:19.1]} 39. Kg3
{[%clk 0:00:06.5]} 39... Rf5 {[%clk 0:00:19.3]} 40. h4 {[%clk 0:00:04.8]} 40...
Ra5 {[%clk 0:00:17.8]} 41. Rf6 {[%clk 0:00:04.3]} 41... Kxd7 {[%clk 0:00:17.2]}
42. Rxf7+ {[%clk 0:00:04.3]} 42... Ke6 {[%clk 0:00:17.5]} 43. Rf3 {[%clk
0:00:04]} 43... Ra4 {[%clk 0:00:17.4]} 44. Re3+ {[%clk 0:00:03.5]} 44... Kf6
{[%clk 0:00:16.6]} 45. Rf3+ {[%clk 0:00:03.8]} 45... Ke5 {[%clk 0:00:17]} 46.
Re3+ {[%clk 0:00:04.1]} 46... Re4 {[%clk 0:00:17.4]} 47. Rf3 {[%clk 0:00:04.4]}
47... Rg4+ {[%clk 0:00:17.8]} 48. Kh3 {[%clk 0:00:04.1]} 48... Rf4 {[%clk
0:00:18.3]} 49. Rg3 {[%clk 0:00:04]} 49... Kf5 {[%clk 0:00:17.9]} 50. Rg5+
{[%clk 0:00:03.7]} 50... Kf6 {[%clk 0:00:18.3]} 51. Kg3 {[%clk 0:00:04.3]} 51...
Rf5 {[%clk 0:00:18.2]} 52. Rxf5+ {[%clk 0:00:04.1]} 52... gxf5 {[%clk
0:00:17.9]} 53. Kf4 {[%clk 0:00:03.1]} 53... Ke6 {[%clk 0:00:18.3]} 54. Kg5
{[%clk 0:00:03.1]} 54... Ke5 {[%clk 0:00:18.7]} 55. Kxh5 {[%clk 0:00:03.4]}
55... f4 {[%clk 0:00:19.2]} 56. Kg4 {[%clk 0:00:03.7]} 56... Ke4 {[%clk
0:00:19.7]} 57. h5 {[%clk 0:00:04.1]} 57... f3 {[%clk 0:00:20.2]} 58. h6 {[%clk
0:00:04]} 58... f2 {[%clk 0:00:20.5]} 59. h7 {[%clk 0:00:04.4]} 59... f1=Q
{[%clk 0:00:20.4]} 60. h8=Q {[%clk 0:00:04.8]} 60... Qg2+ {[%clk 0:00:20.9]} 61.
Kh5 {[%clk 0:00:05.1]} 61... Qh3+ {[%clk 0:00:21]} 62. Kg6 {[%clk 0:00:06]}
62... Qxh8 {[%clk 0:00:20.9]} 0-1

[Event "*** Titled Tuesday Blitz"]
[Site "Chess.com"]
[Date "2020.05.19"]
[Round "10"]
[White "IMRosen"]
[Black "FMVolodymyrSakun"]
[Result "1/2-1/2"]
[WhiteElo "2591"]
[BlackElo "2505"]
[TimeControl "180+1"]
[EndTime "13:57:56 PDT"]
[Termination "Game drawn by repetition"]

1. d4 {[%clk 0:03:00.9]} 1... Nf6 {[%clk 0:02:59.3]} 2. Bf4 {[%clk 0:03:01.1]}
2... g6 {[%clk 0:03:00]} 3. Nc3 {[%clk 0:03:01.2]} 3... Bg7 {[%clk 0:03:00.7]}
4. e4 {[%clk 0:03:01.5]} 4... O-O {[%clk 0:03:01.3]} 5. Qd2 {[%clk 0:03:02.1]}
5... d6 {[%clk 0:03:01.6]} 6. O-O-O {[%clk 0:03:02.5]} 6... c6 {[%clk
0:02:53.4]} 7. Kb1 {[%clk 0:03:01.6]} 7... b5 {[%clk 0:02:53.1]} 8. f3 {[%clk
0:03:02.3]} 8... b4 {[%clk 0:02:53.2]} 9. Nce2 {[%clk 0:03:02.5]} 9... a5 {[%clk
0:02:50.7]} 10. Bh6 {[%clk 0:03:02.8]} 10... Nbd7 {[%clk 0:02:42]} 11. h4 {[%clk
0:03:02.3]} 11... e5 {[%clk 0:02:41]} 12. h5 {[%clk 0:02:56.1]} 12... Qe7 {[%clk
0:02:28.7]} 13. Bxg7 {[%clk 0:02:44.9]} 13... Kxg7 {[%clk 0:02:28.2]} 14. hxg6
{[%clk 0:02:45.5]} 14... fxg6 {[%clk 0:02:28.1]} 15. Qh6+ {[%clk 0:02:46]} 15...
Kg8 {[%clk 0:02:24.2]} 16. Nh3 {[%clk 0:02:42.3]} 16... Ba6 {[%clk 0:02:17]} 17.
Ng5 {[%clk 0:02:39.2]} 17... a4 {[%clk 0:02:14.6]} 18. Nc1 {[%clk 0:02:13]}
18... Bxf1 {[%clk 0:02:12.8]} 19. Rhxf1 {[%clk 0:02:12.9]} 19... Nh5 {[%clk
0:01:50.5]} 20. dxe5 {[%clk 0:02:01]} 20... Nxe5 {[%clk 0:01:25.3]} 21. Rxd6
{[%clk 0:01:30.5]} 21... Qg7 {[%clk 0:01:16.7]} 22. Qxg7+ {[%clk 0:01:20.2]}
22... Nxg7 {[%clk 0:01:16.3]} 23. Rfd1 {[%clk 0:01:16.9]} 23... a3 {[%clk
0:01:12.1]} 24. Nd3 {[%clk 0:01:05.2]} 24... Nc4 {[%clk 0:00:39.9]} 25. Rd7
{[%clk 0:01:03.1]} 25... axb2 {[%clk 0:00:35]} 26. Rxg7+ {[%clk 0:00:50.1]}
26... Kxg7 {[%clk 0:00:34.2]} 27. Ne6+ {[%clk 0:00:50.8]} 27... Kf6 {[%clk
0:00:34.1]} 28. Nxf8 {[%clk 0:00:51.3]} 28... Rxf8 {[%clk 0:00:34.2]} 29. Nxb2
{[%clk 0:00:29.8]} 29... Ne3 {[%clk 0:00:33.4]} 30. Rd6+ {[%clk 0:00:27]} 30...
Kg5 {[%clk 0:00:31.6]} 31. Rxc6 {[%clk 0:00:18.2]} 31... Nxg2 {[%clk 0:00:31.7]}
32. Nd3 {[%clk 0:00:11.2]} 32... h5 {[%clk 0:00:29.9]} 33. Rc5+ {[%clk
0:00:10.2]} 33... Kh6 {[%clk 0:00:29.2]} 34. Nxb4 {[%clk 0:00:04]} 34... h4
{[%clk 0:00:29.2]} 35. Nd3 {[%clk 0:00:04.4]} 35... h3 {[%clk 0:00:28.2]} 36.
Nf2 {[%clk 0:00:04.1]} 36... Nf4 {[%clk 0:00:25.3]} 37. Rc3 {[%clk 0:00:03]}
37... Kg5 {[%clk 0:00:21.3]} 38. Rc5+ {[%clk 0:00:01.9]} 38... Kh4 {[%clk
0:00:20.6]} 39. Nxh3 {[%clk 0:00:02.3]} 39... Kxh3 {[%clk 0:00:20.2]} 40. a4
{[%clk 0:00:02.3]} 40... Kg3 {[%clk 0:00:20.4]} 41. Rc3 {[%clk 0:00:02.7]} 41...
Rb8+ {[%clk 0:00:18.4]} 42. Rb3 {[%clk 0:00:02.2]} 42... Ra8 {[%clk 0:00:16.4]}
43. Ra3 {[%clk 0:00:02]} 43... Ne2 {[%clk 0:00:15.1]} 44. a5 {[%clk 0:00:01.8]}
44... Kf4 {[%clk 0:00:15.4]} 45. a6 {[%clk 0:00:02]} 45... Nd4 {[%clk
0:00:15.7]} 46. c4 {[%clk 0:00:01.9]} 46... Nxf3 {[%clk 0:00:15.2]} 47. c5
{[%clk 0:00:01.9]} 47... Ne5 {[%clk 0:00:15.4]} 48. c6 {[%clk 0:00:02.5]} 48...
Nxc6 {[%clk 0:00:13.7]} 49. Kc1 {[%clk 0:00:03.2]} 49... Nb4 {[%clk 0:00:13.7]}
50. a7 {[%clk 0:00:03.6]} 50... Nc6 {[%clk 0:00:13.9]} 51. Ra6 {[%clk
0:00:04.1]} 51... Rxa7 {[%clk 0:00:10.6]} 52. Rxc6 {[%clk 0:00:04.2]} 52... g5
{[%clk 0:00:11]} 53. Kd1 {[%clk 0:00:04.5]} 53... Re7 {[%clk 0:00:10.4]} 54. Ke2
{[%clk 0:00:04.8]} 54... Rxe4+ {[%clk 0:00:10.6]} 55. Kf2 {[%clk 0:00:05.5]}
55... g4 {[%clk 0:00:11]} 56. Kg2 {[%clk 0:00:06]} 56... Re2+ {[%clk 0:00:10.9]}
57. Kf1 {[%clk 0:00:06.4]} 57... Rd2 {[%clk 0:00:11.1]} 58. Rc3 {[%clk
0:00:06.3]} 58... g3 {[%clk 0:00:10.6]} 59. Rc8 {[%clk 0:00:05.2]} 59... Kf3
{[%clk 0:00:10.2]} 60. Rf8+ {[%clk 0:00:05.1]} 60... Kg4 {[%clk 0:00:10.4]} 61.
Rg8+ {[%clk 0:00:04.9]} 61... Kf3 {[%clk 0:00:10.7]} 62. Rf8+ {[%clk 0:00:05.3]}
62... Kg4 {[%clk 0:00:10.7]} 63. Rg8+ {[%clk 0:00:05.8]} 63... Kf4 {[%clk
0:00:11]} 64. Rf8+ {[%clk 0:00:06.2]} 64... Ke3 {[%clk 0:00:11.2]} 65. Re8+
{[%clk 0:00:06.5]} 65... Kf3 {[%clk 0:00:11.5]} 66. Rf8+ {[%clk 0:00:06.8]}
1/2-1/2

[Event "*** Titled Tuesday Blitz"]
[Site "Chess.com"]
[Date "2020.05.19"]
[Round "10"]
[White "K_A_S_T_O_R"]
[Black "FontVella8"]
[Result "0-1"]
[WhiteElo "2719"]
[BlackElo "2570"]
[TimeControl "180+1"]
[EndTime "13:57:57 PDT"]
[Termination "FontVella8 won by resignation"]

1. e4 {[%clk 0:03:00.9]} 1... c6 {[%clk 0:02:59.4]} 2. d4 {[%clk 0:02:59.9]}
2... d5 {[%clk 0:02:59.6]} 3. exd5 {[%clk 0:03:00.3]} 3... cxd5 {[%clk
0:02:59.5]} 4. c4 {[%clk 0:03:00.9]} 4... Nf6 {[%clk 0:02:59.2]} 5. Nc3 {[%clk
0:02:58]} 5... Nc6 {[%clk 0:02:58.8]} 6. Bg5 {[%clk 0:02:50.3]} 6... e6 {[%clk
0:02:48.2]} 7. c5 {[%clk 0:02:50]} 7... Be7 {[%clk 0:02:47.6]} 8. Bb5 {[%clk
0:02:50.3]} 8... O-O {[%clk 0:02:47.2]} 9. Nge2 {[%clk 0:02:50.8]} 9... Ne4
{[%clk 0:02:43.7]} 10. Bxe7 {[%clk 0:02:50.2]} 10... Nxe7 {[%clk 0:02:43.7]} 11.
O-O {[%clk 0:02:50.5]} 11... f5 {[%clk 0:02:41.8]} 12. f3 {[%clk 0:02:49.6]}
12... Nf6 {[%clk 0:02:41.3]} 13. b4 {[%clk 0:02:42.9]} 13... Qc7 {[%clk
0:02:40.8]} 14. Qd2 {[%clk 0:02:38.1]} 14... Ng6 {[%clk 0:02:36.6]} 15. Rfe1
{[%clk 0:02:34.3]} 15... f4 {[%clk 0:02:03.8]} 16. Bd3 {[%clk 0:02:33.4]} 16...
e5 {[%clk 0:01:55.2]} 17. Bxg6 {[%clk 0:02:33.2]} 17... hxg6 {[%clk 0:01:55.1]}
18. dxe5 {[%clk 0:02:33.8]} 18... Qxe5 {[%clk 0:01:54.8]} 19. Qxf4 {[%clk
0:02:28.8]} 19... Qh5 {[%clk 0:01:44.6]} 20. Ng3 {[%clk 0:02:26.8]} 20... Qh7
{[%clk 0:01:39]} 21. Re7 {[%clk 0:02:25.5]} 21... Ng4 {[%clk 0:01:27.3]} 22. Qd4
{[%clk 0:01:54.9]} 22... Qxh2+ {[%clk 0:01:17.8]} 23. Kf1 {[%clk 0:01:55.3]}
23... Nf6 {[%clk 0:00:53.4]} 24. Nce2 {[%clk 0:01:53.9]} 24... Bf5 {[%clk
0:00:48.3]} 25. Rd1 {[%clk 0:01:48.8]} 25... Rae8 {[%clk 0:00:48]} 26. Rxe8
{[%clk 0:01:48.2]} 26... Rxe8 {[%clk 0:00:48.9]} 27. Kf2 {[%clk 0:01:48.4]}
27... Bh3 {[%clk 0:00:40.2]} 28. Rg1 {[%clk 0:01:46.2]} 28... Rf8 {[%clk
0:00:37.3]} 29. Ke1 {[%clk 0:01:39.1]} 29... Bd7 {[%clk 0:00:25.6]} 30. Kd2
{[%clk 0:01:37.4]} 30... Qh6+ {[%clk 0:00:24.8]} 31. Qe3 {[%clk 0:01:36.9]}
31... Qh4 {[%clk 0:00:22.6]} 32. Qd4 {[%clk 0:01:37]} 32... Qg5+ {[%clk
0:00:21.6]} 33. Kc2 {[%clk 0:01:34.5]} 33... Re8 {[%clk 0:00:20.6]} 34. Kb1
{[%clk 0:01:29.7]} 34... Bb5 {[%clk 0:00:15]} 35. Re1 {[%clk 0:01:21.3]} 35...
Bc4 {[%clk 0:00:13.5]} 36. f4 {[%clk 0:01:09.1]} 36... Qg4 {[%clk 0:00:11.7]}
37. Qf2 {[%clk 0:01:09.6]} 37... Ne4 {[%clk 0:00:08.6]} 38. Nxe4 {[%clk
0:01:09.6]} 38... Rxe4 {[%clk 0:00:08.1]} 39. Nc3 {[%clk 0:01:08.3]} 39... Rxf4
{[%clk 0:00:05.9]} 40. Re8+ {[%clk 0:01:01.5]} 40... Kf7 {[%clk 0:00:06]} 41.
Qe3 {[%clk 0:01:00.3]} 41... Qf5+ {[%clk 0:00:06]} 42. Kb2 {[%clk 0:00:59.5]}
42... Rf2+ {[%clk 0:00:03.6]} 43. Ka3 {[%clk 0:00:59.7]} 43... Qf6 {[%clk
0:00:03.5]} 44. b5 {[%clk 0:00:50.3]} 44... Rc2 {[%clk 0:00:03.2]} 45. Kb4
{[%clk 0:00:44.4]} 45... d4 {[%clk 0:00:03.5]} 46. Qe4 {[%clk 0:00:39.2]} 46...
Rxc3 {[%clk 0:00:03.7]} 47. Rb8 {[%clk 0:00:37.3]} 47... Be6 {[%clk 0:00:03.2]}
48. Qxb7+ {[%clk 0:00:36.7]} 48... Qe7 {[%clk 0:00:03.6]} 49. Qxe7+ {[%clk
0:00:34.5]} 49... Kxe7 {[%clk 0:00:04.5]} 50. Rb7+ {[%clk 0:00:35.1]} 50... Kf6
{[%clk 0:00:04.3]} 51. Rxa7 {[%clk 0:00:35.6]} 51... Rc1 {[%clk 0:00:04.5]} 52.
Ra6 {[%clk 0:00:36.2]} 52... d3 {[%clk 0:00:04.6]} 53. Rd6 {[%clk 0:00:35.8]}
53... Rd1 {[%clk 0:00:04]} 54. c6 {[%clk 0:00:35.8]} 54... Ke5 {[%clk 0:00:04]}
55. Rd8 {[%clk 0:00:35.2]} 55... d2 {[%clk 0:00:04.3]} 56. Ka5 {[%clk
0:00:34.3]} 56... Bd5 {[%clk 0:00:03.9]} 57. c7 {[%clk 0:00:34]} 57... Rc1
{[%clk 0:00:04.4]} 58. c8=Q {[%clk 0:00:32.6]} 58... Rxc8 {[%clk 0:00:04.4]} 59.
Rxc8 {[%clk 0:00:33.2]} 59... d1=Q {[%clk 0:00:04.8]} 60. Re8+ {[%clk
0:00:33.9]} 60... Kd4 {[%clk 0:00:05.3]} 61. Rc8 {[%clk 0:00:34.5]} 61... Qd2+
{[%clk 0:00:05.7]} 62. Kb6 {[%clk 0:00:32.5]} 62... Qxa2 {[%clk 0:00:06.1]} 63.
Rc1 {[%clk 0:00:31.6]} 63... Qa3 {[%clk 0:00:05.4]} 64. Rd1+ {[%clk 0:00:31.5]}
64... Ke5 {[%clk 0:00:05.9]} 65. Re1+ {[%clk 0:00:31.5]} 65... Kd6 {[%clk
0:00:06.1]} 66. Rd1 {[%clk 0:00:31.4]} 66... Qc5+ {[%clk 0:00:06.2]} 0-1